Workbook

Sheet Лист2
C2: Таблица длинная…
A4: Шифр | C4: Название | D4: Ед. изм. | E4: Кол-во | F4: Цена | G4: Стоимость
A5: 2-36 | C5: Раб 2-36 | D5: шт. | E5: 1 | F5: =VLOOKUP(A5,база!A4:G34,6,0) -> 42 | G5: =E5*F5 -> 42
B6: 309 | C6: мат 2-36 | D6: шт. | E6: =E5*0.08 -> 0.08 | F6: 494 | G6: =E6*F6 -> 39.52
A7: 2-37 | C7: Раб 2-37 | D7: шт. | E7: 1 | F7: =VLOOKUP(A7,база!A7:G36,6,0) -> 78 | G7: =E7*F7 -> 78
B8: 309 | C8: мат 2-37 | D8: шт. | E8: =E7*0.12 -> 0.12 | F8: 494 | G8: =E8*F8 -> 59.28
A9: 2-45 | C9: Раб 2-45 | D9: шт. | E9: 2 | F9: =VLOOKUP(A9,база!A9:G38,6,0) -> 156 | G9: 156
B10: 190 | C10: мат 2-45 | D10: шт. | E10: =E9 -> 2 | F10: 488 | G10: =E10*F10 -> 976
A11: 2-46 | C11: Раб 2-46 | D11: шт. | E11: 1 | F11: =VLOOKUP(A11,база!A11:G40,6,0) -> 169 | G11: 169
B12: 190 | C12: мат 2-46 | D12: шт. | E12: =E11*1.5 -> 1.5 | F12: 488 | G12: 732
A13: 2-47 | C13: Раб 2-47 | D13: шт. | E13: 1 | F13: =VLOOKUP(A13,база!A13:G42,6,0) -> 208 | G13: 208
B14: 190 | C14: мат 2-47 | D14: шт. | E14: =E13*1.8 -> 1.8 | F14: 488 | G14: 878.4
A15: 2-41 | C15: Раб 2-41 | D15: шт. | E15: 1 | F15: =VLOOKUP(A15,база!A15:G44,6,0) -> 169 | G15: 169
B16: 190 | C16: мат 2-41 | D16: шт. | E16: =E15*0.2 -> 0.2 | F16: 488 | G16: 97.6
A17: =_2_44 -> 
C18: работа: | G18: =SUM(G5,G7,G9,G11,G13,G15) -> 822
C19: материалы: | G19: =SUM(G6,G8,G10,G12,G14,G16) -> 2782.8
C20: всего: | G20: =SUM(G18:G19) -> 3604.8

Sheet база
C2: отрывок базы данных
A4: 2-36 | C4: Раб 2-36 | D4: шт. | E4: 1 | F4: 42 | G4: =E4*F4 -> 42
B5: 309 | C5: материал | D5: шт. | E5: =E4*0.08 -> 0.08 | F5: 494 | G5: 39.52
B6: 1311 | C6: материал | D6: шт. | E6: =E5*0.08 -> 0.0064 | F6: 494 | G6: =E6*F6 -> 3.1616
A7: 2-37 | C7: Раб 2-37 | D7: шт. | E7: 1 | F7: 78 | G7: 78
B8: 309 | C8: материал | D8: шт. | E8: =E7*0.12 -> 0.12 | F8: 494 | G8: 59.28
A9: 2-38 | C9: Раб 2-38 | D9: шт. | E9: 1 | F9: 110 | G9: 110
B10: 190 | C10: материал | D10: шт. | E10: =E9*0.15 -> 0.15 | F10: 488 | G10: 73.2
A11: 2-39 | C11: Раб 2-39 | D11: шт. | E11: 1 | F11: 78 | G11: 78
B12: 309 | C12: материал | D12: шт. | E12: =E11*0.12 -> 0.12 | F12: 494 | G12: 59.28
A13: 2-40 | C13: Раб 2-40 | D13: шт. | E13: 1 | F13: 109 | G13: 109
B14: 309 | C14: материал | D14: шт. | E14: =E13*0.15 -> 0.15 | F14: 494 | G14: 74.1
A15: 2-41 | C15: Раб 2-41 | D15: шт. | E15: 1 | F15: 169 | G15: 169
B16: 190 | C16: материал | D16: шт. | E16: =E15*0.2 -> 0.2 | F16: 488 | G16: 97.6
A17: 2-42 | C17: Раб 2-42 | D17: шт. | E17: 1 | F17: 65 | G17: 65
B18: 190 | C18: материал | D18: шт. | E18: =E17*0.2 -> 0.2 | F18: 488 | G18: 97.6
A19: 2-43 | C19: Раб 2-43 | D19: шт. | E19: 1 | F19: 130 | G19: 130
B20: 190 | C20: материал | D20: шт. | E20: =E19*0.3 -> 0.3 | F20: 488 | G20: 146.4
A21: 2-44 | C21: Раб 2-44 | D21: шт. | E21: 1 | F21: 156 | G21: 156
B22: 1119 | C22: материал | D22: шт. | E22: =E21*1.8 -> 1.8 | F22: 488 | G22: =E22*F22 -> 878.4
B23: 190 | C23: материал | D23: шт. | E23: =E21*0.35 -> 0.35 | F23: 488 | G23: 170.8
A24: 2-45 | C24: Раб 2-45 | D24: шт. | E24: 1 | F24: 156 | G24: 156
B25: 190 | C25: материал | D25: шт. | E25: =E24 -> 1 | F25: 488 | G25: 488
A26: 2-46 | C26: Раб 2-46 | D26: шт. | E26: 1 | F26: 169 | G26: 169
B27: 190 | C27: материал | D27: шт. | E27: =E26*1.5 -> 1.5 | F27: 488 | G27: 732
A28: 2-47 | C28: Раб 2-47 | D28: шт. | E28: 1 | F28: 208 | G28: 208
B29: 190 | C29: материал | D29: шт. | E29: =E28*1.8 -> 1.8 | F29: 488 | G29: 878.4
A30: 2-48 | C30: Раб 2-48 | D30: шт. | E30: 1 | F30: 168 | G30: 168
B31: 190 | C31: материал | D31: шт. | E31: =E30*1.8 -> 1.8 | F31: 488 | G31: 878.4
A32: 2-49 | C32: Раб 2-49 | D32: шт. | E32: 1 | F32: 208 | G32: 208
B33: 190 | C33: материал | D33: шт. | E33: =E32*2.5 -> 2.5 | F33: 488 | G33: 1220
A34: 2-50 | C34: Раб 2-50 | D34: шт. | E34: 1 | F34: 273 | G34: 273
